bitfinex-derivatives/quotes_SOLF0:USTF0_20250924
["timestamp","ask_amount","ask_price","bid_price","bid_amount"]
[1758677587653,7.78,215.54,215.46,7.62]
[1758677588354,7.78,215.54,215.47,1.31337515]
[1758677588658,7.78,215.54,215.43,68.81074991]
[1758677588659,7.78,215.58,215.5,7.62]
[1758677589156,7.78,215.58,215.51,5.48767515]
[1758677590358,7.78,215.58,215.52,4.1741]
[1758677590556,7.78,215.58,215.51,1.31337515]
[1758677590760,7.78,215.58,215.5,11.7945]
[1758677591063,7.78,215.58,215.51,1.31337515]
[1758677591461,7.78,215.58,215.5,7.62]
[1758677592367,7.78,215.58,215.49,1.31337515]
[1758677592368,4.1731,215.59,215.49,1.31337515]
[1758677592558,9.02963262,215.58,215.49,8.93337515]
[1758677592757,7.78,215.58,215.49,13.10807515]
[1758677593359,9.09337515,215.58,215.49,7.62]
[1758677593559,7.21,215.56,215.44,11.65064991]
[1758677593863,7.21,215.54,215.45,1.31337515]
[1758677594158,4.1743,215.52,215.44,7.8]
[1758677594363,7.21,215.54,215.44,7.8]
[1758677594559,7.21,215.54,215.47,4.1752]
[1758677595159,7.21,215.58,215.51,4.1743]
[1758677595359,1.25017398,215.57,215.51,11.9743]
[1758677595562,7.21,215.58,215.51,11.9743]
[1758677595759,1.31337515,215.61,215.51,9.11337515]
[1758677596064,1.25017023,215.6,215.52,7.8]
[1758677596267,1.25017023,215.59,215.52,7.8]
[1758677596458,8.52337515,215.61,215.53,4.1739]
[1758677596759,1.25033441,215.6,215.53,4.1739]
[1758677596964,1.25033441,215.59,215.53,4.1739]
[1758677597163,8.52337515,215.61,215.53,4.1739]
[1758677597364,1.2506081,215.6,215.53,4.1739]
[1758677597561,1.2506081,215.59,215.53,4.1739]
[1758677597756,8.52337515,215.61,215.53,4.1739]
[1758677597960,1.25060686,215.6,215.54,4.1737]
[1758677598157,1.25060686,215.59,215.55,7.8]
[1758677598362,7.21,215.61,215.54,11.9737]
[1758677598565,1.2509063,215.6,215.54,7.8]
[1758677598868,7.21,215.58,215.54,7.8]
[1758677599264,11.3827,215.6,215.52,4.1742]
[1758677599469,1.25116409,215.59,215.52,4.1742]
[1758677599768,1.25116409,215.58,215.52,4.1742]
[1758677599970,11.3827,215.6,215.52,4.1742]
[1758677600279,1.25116979,215.59,215.52,4.1742]
[1758677600568,1.25116979,215.58,215.52,4.1742]
[1758677600870,11.3827,215.6,215.52,4.1742]
[1758677601066,1.25145355,215.59,215.52,4.1742]
[1758677601267,1.25145355,215.58,215.52,4.1742]
[1758677601468,11.3827,215.6,215.52,4.1742]
[1758677601668,1.2518005,215.59,215.52,4.1742]
[1758677601860,1.2518005,215.58,215.52,4.1742]
[1758677602065,11.3827,215.6,215.52,4.1742]
[1758677602374,1.25218441,215.59,215.52,4.1742]
[1758677602565,1.25218441,215.58,215.52,4.1742]
[1758677602764,11.3827,215.6,215.52,4.1742]
[1758677602965,1.25218441,215.59,215.52,4.1742]
[1758677603265,1.25218441,215.58,215.52,4.1742]
[1758677603466,11.3827,215.6,215.52,4.1742]
[1758677603766,1.25236157,215.59,215.52,4.1742]
[1758677603969,1.25236157,215.58,215.52,4.1742]
[1758677604272,1.25239309,215.57,215.53,7.31]
[1758677604475,11.3827,215.6,215.53,7.31]
[1758677604768,7.74,215.58,215.5,1.31337515]
[1758677604975,1.25245431,215.57,215.5,1.31337515]
[1758677605573,7.74,215.56,215.5,1.31337515]
[1758677605770,8.99245431,215.55,215.5,8.62337515]
[1758677605973,1.25265787,215.54,215.47,1.31337515]
[1758677606173,7.74,215.53,215.47,1.31337515]
[1758677606874,7.74,215.53,215.46,3.85064991]
[1758677607064,7.74,215.51,215.43,3.85064991]
[1758677607263,7.74,215.51,215.42,8.62337515]
[1758677607264,4.1756,215.46,215.42,3.85064991]
[1758677607463,11.9156,215.46,215.4,3.85064991]
[1758677607863,7.74,215.46,215.4,3.85064991]
[1758677609277,1.31337515,215.51,215.41,8.62337515]
[1758677609578,1.25222522,215.5,215.41,8.62337515]
[1758677609768,1.31337515,215.51,215.43,7.31]
[1758677609972,1.25221379,215.5,215.43,7.31]
[1758677610173,1.31337515,215.51,215.43,7.31]
[1758677610470,1.25216402,215.5,215.43,7.31]
[1758677610777,1.31337515,215.51,215.44,4.1756]
[1758677610966,1.25216402,215.5,215.44,4.1756]
[1758677611166,1.31337515,215.51,215.43,7.31]
[1758677611471,1.25200616,215.5,215.43,7.31]
[1758677611777,1.31337515,215.51,215.43,7.31]
[1758677611974,1.25200619,215.5,215.43,7.31]
[1758677612272,1.31337515,215.51,215.43,7.31]
[1758677612473,1.25188726,215.5,215.43,7.31]
[1758677612676,1.31337515,215.51,215.43,7.31]
[1758677613172,1.31337515,215.51,215.44,4.1756]
[1758677614170,1.31337515,215.51,215.43,7.31]
[1758677614374,7.74,215.49,215.41,3.85064991]
[1758677614680,7.74,215.49,215.4,7.31]
[1758677614681,1.31337515,215.47,215.4,7.31]
[1758677616574,5.48877515,215.47,215.4,7.31]
[1758677616778,7.74,215.46,215.4,7.31]
[1758677619076,1.31337515,215.44,215.37,3.85064991]
[1758677619284,1.31337515,215.44,215.36,362.24064991]
[1758677619488,1.31337515,215.44,215.36,11.16064991]
[1758677619676,7.74,215.43,215.35,8.02814991]
[1758677619980,7.74,215.43,215.35,4.1775]
[1758677620779,4.1764,215.42,215.35,4.1775]
[1758677620984,4.1764,215.42,215.34,3.85064991]
[1758677621185,4.1764,215.42,215.33,7.31]
[1758677621186,7.74,215.4,215.33,7.31]
[1758677621481,1.31337515,215.41,215.33,7.31]
[1758677621684,1.31337515,215.43,215.33,12.47402506]
[1758677621877,7.74,215.44,215.36,7.31]
[1758677622384,1.31337515,215.45,215.36,7.31]
[1758677622585,1.31337515,215.45,215.36,11.16064991]
[1758677623483,7.74,215.44,215.36,7.31]
[1758677623684,1.31337515,215.43,215.36,7.31]
[1758677624882,7.74,215.44,215.36,7.31]
[1758677625079,7.74,215.44,215.38,4.1768]
[1758677625876,1.31337515,215.43,215.36,11.4873]
[1758677627474,5.48947515,215.43,215.36,7.31]
[1758677627679,1.31337515,215.43,215.36,7.31]
[1758677628389,1.31337515,215.4,215.32,8.02874991]
[1758677628687,15.14,215.39,215.33,7.31]
[1758677628883,15.14,215.39,215.35,7.31]
[1758677629286,15.14,215.39,215.33,7.31]
[1758677631291,19.3168,215.39,215.33,7.31]
[1758677631584,19.3168,215.39,215.32,4.1781]
[1758677631585,28.37017515,215.39,215.32,4.1781]
[1758677631777,4.1772,215.37,215.3,3.85064991]
[1758677631982,5.49057515,215.37,215.3,3.85064991]
[1758677632277,4.1776,215.35,215.29,7.31]
[1758677632484,7.74,215.34,215.27,4.179]
[1758677633183,11.9179,215.34,215.27,4.179]
[1758677634480,1.31337515,215.37,215.28,7.51]
[1758677634885,7.49,215.38,215.29,1.31337515]
[1758677635287,7.49,215.38,215.31,4.1782]
[1758677635696,7.49,215.38,215.29,1.31337515]
[1758677635697,7.49,215.38,215.3,7.51]
[1758677636091,15.14,215.39,215.33,1.31337515]
[1758677636391,15.14,215.39,215.36,7.51]
[1758677636588,15.14,215.39,215.35,1.31337515]
[1758677636790,15.14,215.39,215.37,11.687]
[1758677639092,15.14,215.39,215.38,7.51]
[1758677640094,15.14,215.39,215.38,8.82337515]
[1758677640891,15.14,215.39,215.38,7.51]
[1758677641195,15.14,215.39,215.38,8.82337515]
[1758677642293,15.14,215.39,215.38,7.51]
[1758677643190,15.14,215.39,215.37,5.49037515]
[1758677643396,15.14,215.39,215.35,13.00087515]
[1758677643597,15.14,215.39,215.36,7.51]
[1758677643792,15.14,215.39,215.37,1.31337515]
[1758677643994,15.14,215.39,215.37,13.00047515]
[1758677644693,22.63,215.39,215.32,7.51]
[1758677644897,22.63,215.39,215.28,88.72064991]
[1758677645091,22.63,215.39,215.3,4.1785]
[1758677645694,7.49,215.35,215.28,81.5388]
[1758677646096,7.49,215.35,215.28,4.1788]
[1758677646295,7.49,215.35,215.24,119.19064991]
[1758677646498,2.05518937,215.34,215.24,115.34]
[1758677646800,7.49,215.33,215.24,115.34]
[1758677646998,7.49,215.33,215.26,4.1791]
[1758677647297,7.49,215.33,215.25,7.51]
[1758677648201,7.49,215.37,215.29,7.51]
[1758677649208,7.49,215.38,215.32,4.1781]
[1758677649898,7.49,215.38,215.29,11.6886]
[1758677650101,1.25566449,215.37,215.29,11.6886]
[1758677650300,7.49,215.38,215.29,11.6886]
[1758677650500,1.25587866,215.37,215.29,11.6886]
[1758677650802,11.6671,215.38,215.29,11.6886]
[1758677651005,1.25587869,215.37,215.29,11.6886]
[1758677651200,11.6671,215.38,215.29,11.6886]
[1758677651407,1.25619709,215.37,215.33,7.51]
[1758677651604,15.14,215.39,215.33,7.51]
[1758677651808,8.74604232,215.38,215.33,7.51]
[1758677652010,1.25604232,215.37,215.33,7.51]
[1758677652208,8.74604232,215.37,215.32,4.1781]
[1758677652403,7.49,215.37,215.3,4.1785]
[1758677657008,15.14,215.39,215.29,7.51]
[1758677657599,11.3765,215.41,215.33,4.1778]
[1758677657803,1.25642783,215.4,215.3,7.17]
[1758677658006,11.3765,215.41,215.3,7.17]
[1758677658208,1.25641927,215.4,215.3,7.17]
[1758677658408,11.3765,215.41,215.3,7.17]
[1758677658608,1.25687214,215.4,215.34,4.1776]
[1758677658805,7.2,215.41,215.34,4.1776]
[1758677659006,1.25687214,215.4,215.34,4.1776]
[1758677659209,11.3756,215.45,215.37,11.347]
[1758677659408,1.25722904,215.44,215.37,7.17]
[1758677659612,1.25722904,215.43,215.37,7.17]
[1758677659812,1.25722904,215.42,215.37,7.17]
[1758677660011,7.2,215.45,215.37,7.17]
[1758677660208,1.25730882,215.44,215.37,7.17]
[1758677660412,1.25730882,215.43,215.37,7.17]
[1758677660617,12.44,215.42,215.37,7.17]
[1758677660919,12.44,215.42,215.39,11.3467]
[1758677663522,12.44,215.42,215.39,7.17]
[1758677664325,12.44,215.42,215.39,11.3466]
[1758677667431,12.44,215.42,215.34,7.73]
[1758677667932,12.44,215.42,215.38,4.1768]
[1758677668127,20.22,215.42,215.38,11.9068]
[1758677668327,7.78,215.41,215.38,4.1768]
[1758677670028,7.78,215.41,215.36,7.73]
[1758677670227,7.78,215.41,215.35,11.9074]
[1758677670429,7.78,215.41,215.35,7.73]
[1758677671737,12.44,215.42,215.35,7.73]
[1758677673938,20.22,215.42,215.39,4.1766]
[1758677675036,12.44,215.42,215.37,4.1771]
[1758677675241,7.78,215.41,215.37,11.9071]
[1758677675437,7.78,215.41,215.34,72.7174]
[1758677675642,7.78,215.41,215.34,76.56804991]
[1758677676733,7.78,215.41,215.35,3.85064991]
[1758677676937,7.78,215.41,215.39,4.1766]
[1758677677741,12.44,215.42,215.41,7.73]
[1758677680341,12.44,215.42,215.4,4.1764]
[1758677680543,12.44,215.42,215.34,3.85064991]
[1758677680847,7.78,215.4,215.34,118.79064991]
[1758677681848,7.78,215.4,215.37,4.177]
[1758677682240,7.78,215.45,215.37,4.177]
[1758677682443,7.78,215.43,215.37,4.177]
[1758677684453,7.78,215.44,215.38,4.1769]
[1758677684654,17.57,215.42,215.38,4.1769]
[1758677684854,7.78,215.41,215.38,4.1769]
[1758677685255,17.57,215.42,215.38,4.1769]
[1758677685458,7.78,215.41,215.38,4.1769]
[1758677685652,17.57,215.42,215.38,4.1769]
[1758677685847,7.78,215.41,215.36,4.1773]
[1758677686048,7.78,215.41,215.32,3.85064991]
[1758677686549,7.78,215.39,215.3,7.73]
[1758677686749,1.25200199,215.38,215.3,7.73]
[1758677686955,4.1767,215.4,215.32,4.178]
[1758677687156,7.78,215.38,215.32,4.178]
[1758677689455,7.78,215.38,215.3,4.1785]
[1758677689658,7.78,215.36,215.27,11.58064991]
[1758677690059,7.78,215.36,215.27,3.85064991]
[1758677690459,7.78,215.36,215.29,4.1787]
[1758677690753,7.78,215.36,215.29,7.73]
[1758677690957,7.78,215.36,215.27,3.85064991]
[1758677691256,2.05518937,215.4,215.26,11.58064991]
[1758677691557,2.05518937,215.4,215.29,4.1785]
[1758677691558,7.78,215.38,215.29,4.1785]
[1758677691761,7.78,215.36,215.29,4.1785]
[1758677691955,11.9575,215.36,215.26,7.73]
[1758677692147,11.9575,215.36,215.26,11.9091]
[1758677692458,7.78,215.34,215.26,7.73]
[1758677692659,7.78,215.34,215.28,4.1788]
[1758677692863,7.78,215.34,215.26,7.73]
[1758677693752,7.78,215.34,215.29,4.1786]
[1758677693955,7.42,215.36,215.26,7.73]
[1758677694353,1.25202679,215.35,215.26,7.73]
[1758677694553,7.42,215.36,215.26,7.73]
[1758677695454,7.42,215.36,215.29,4.1786]
[1758677695651,1.2520253,215.35,215.26,7.73]
[1758677695856,7.42,215.34,215.26,7.73]
[1758677696860,7.42,215.4,215.26,7.73]
[1758677697056,1.25199108,215.39,215.27,72.3777]
[1758677697259,1.25199108,215.38,215.28,7.37]
[1758677697460,1.25199108,215.37,215.28,7.37]
[1758677697660,7.42,215.4,215.28,7.37]
[1758677697960,1.25202969,215.39,215.28,7.37]
[1758677698157,1.25202969,215.38,215.28,7.37]
[1758677698463,1.25202969,215.37,215.28,7.37]
[1758677698654,7.42,215.4,215.28,7.37]
[1758677698850,1.25336207,215.39,215.32,4.178]
[1758677699049,7.42,215.4,215.32,4.178]
[1758677699050,1.25336207,215.38,215.32,4.178]
[1758677699256,6.23158937,215.41,215.32,4.178]
[1758677699257,7.42,215.36,215.32,11.548]
[1758677700364,7.42,215.4,215.3,4.1785]
[1758677700564,7.42,215.38,215.29,7.37]
[1758677700760,1.2534283,215.37,215.29,7.37]
[1758677700962,7.42,215.38,215.31,4.1782]
[1758677701152,1.25342827,215.37,215.31,4.1782]
[1758677701357,7.42,215.38,215.31,4.1782]
[1758677701657,1.25344978,215.37,215.31,4.1782]
[1758677701858,7.42,215.4,215.31,4.1782]
[1758677702165,7.42,215.38,215.31,4.1782]
[1758677702367,7.42,215.36,215.32,11.5479]
[1758677702762,7.42,215.36,215.33,7.37]
[1758677703459,7.42,215.36,215.32,4.1779]
[1758677703660,7.42,215.36,215.32,11.5479]
[1758677704466,64.9471,215.48,215.34,7.37]
[1758677704467,4.1761,215.43,215.34,7.37]
[1758677704664,1.31586878,215.41,215.34,7.37]
[1758677704868,1.25330399,215.4,215.34,7.37]
[1758677705168,1.31586878,215.41,215.34,7.37]
[1758677705365,1.25330141,215.4,215.34,7.37]
[1758677705565,1.31586878,215.41,215.34,7.37]
[1758677705771,1.25328617,215.4,215.34,11.5476]
[1758677705971,1.31586878,215.41,215.34,11.5476]
[1758677706170,1.25327719,215.4,215.34,11.5476]
[1758677706372,1.31586878,215.41,215.35,4.1774]
[1758677706670,7.42,215.42,215.34,7.37]
[1758677706871,1.25329131,215.41,215.34,7.37]
[1758677707073,7.42,215.42,215.34,7.37]
[1758677707266,15.03329126,215.41,215.34,7.37]
[1758677707466,13.78,215.41,215.34,7.37]
[1758677707875,7.42,215.4,215.36,11.5472]
[1758677710583,7.42,215.4,215.36,7.37]
[1758677710776,7.42,215.39,215.33,1.31586878]
[1758677710972,7.42,215.39,215.31,8.68586878]
[1758677711684,8.73586878,215.39,215.31,7.37]
[1758677711991,7.42,215.38,215.29,8.68586878]
[1758677712178,1.31586878,215.37,215.31,4.1782]
[1758677712375,7.42,215.38,215.29,8.68586878]
[1758677712681,7.42,215.38,215.29,12.53723679]
[1758677712886,7.42,215.38,215.29,16.71583679]
[1758677713088,7.42,215.38,215.29,8.68586878]
[1758677713980,7.42,215.38,215.3,4.1784]
[1758677714477,7.42,215.38,215.32,4.178]
[1758677714686,7.42,215.38,215.31,1.31586878]
[1758677714883,22.28586878,215.41,215.32,7.71]
[1758677715084,1.25353618,215.4,215.32,7.71]
[1758677715284,22.28586878,215.41,215.32,7.71]
[1758677715485,1.25357332,215.4,215.32,7.71]
[1758677715685,22.28586878,215.41,215.32,7.71]
[1758677715886,22.28586878,215.41,215.34,4.1776]
[1758677715887,1.25357332,215.4,215.34,4.1776]
[1758677716086,22.28586878,215.41,215.34,4.1776]
[1758677716286,1.25357329,215.4,215.34,4.1776]
[1758677716484,22.28586878,215.41,215.34,4.1776]
[1758677716687,1.25361279,215.4,215.34,4.1776]
[1758677716984,20.97,215.41,215.34,7.71]
[1758677717977,1.31586878,215.38,215.31,4.1782]
[1758677718184,7.19,215.39,215.31,4.1782]
[1758677718379,7.19,215.39,215.3,7.71]
[1758677718585,7.19,215.39,215.33,11.8878]
[1758677718788,8.50586878,215.39,215.33,7.71]
[1758677720490,8.50586878,215.39,215.33,11.8878]
[1758677720689,7.19,215.39,215.33,7.71]
[1758677720993,15.09586878,215.41,215.33,7.71]
[1758677721195,1.25387467,215.4,215.33,7.71]
[1758677721494,1.31586878,215.41,215.33,7.71]
[1758677721689,1.2539513,215.4,215.33,7.71]
[1758677721890,7.19,215.42,215.33,9.02586878]
[1758677722085,1.25395122,215.41,215.33,9.02586878]
[1758677722288,1.25395122,215.4,215.33,9.02586878]
[1758677722493,7.19,215.42,215.33,9.02586878]
[1758677722693,1.31586878,215.45,215.38,4.1768]
[1758677722898,1.25405174,215.44,215.38,7.71]
[1758677723097,1.31586878,215.45,215.36,7.71]
[1758677723098,1.25405174,215.43,215.36,7.71]
[1758677723300,1.31586878,215.45,215.36,7.71]
[1758677723505,1.25439143,215.44,215.36,7.71]
[1758677723695,15.19439143,215.43,215.36,7.71]
[1758677723898,15.19439143,215.43,215.4,7.61]
[1758677723899,13.94,215.43,215.4,7.61]
[1758677724696,13.94,215.43,215.41,7.61]
[1758677725391,13.94,215.43,215.42,7.61]
[1758677727693,8.84586878,215.51,215.42,7.61]
[1758677727897,1.25475424,215.5,215.43,1.31586878]
[1758677728091,1.25475424,215.49,215.44,7.61]
[1758677728296,7.53,215.51,215.44,7.61]
[1758677728494,1.26009595,215.5,215.44,7.61]
[1758677728689,1.26009595,215.49,215.44,7.61]
[1758677728900,7.53,215.51,215.46,4.1753]
[1758677729096,1.26009593,215.5,215.47,7.61]
[1758677729400,1.26009593,215.49,215.47,7.61]
[1758677729700,7.53,215.51,215.47,7.61]
[1758677730001,1.25962296,215.5,215.47,7.61]
[1758677730206,1.25962296,215.49,215.47,7.61]
[1758677730504,7.53,215.51,215.47,7.61]
[1758677730695,1.2591918,215.5,215.47,7.61]
[1758677730893,1.2591918,215.49,215.45,7.61]
[1758677731098,7.53,215.51,215.45,7.61]
[1758677731402,7.53,215.51,215.43,1.31586878]
[1758677731403,7.53,215.51,215.44,7.61]
[1758677731803,7.53,215.51,215.47,7.61]
[1758677732504,7.53,215.51,215.45,1.31586878]
[1758677732997,7.53,215.51,215.45,5.49136878]
[1758677733797,1.2576933,215.5,215.46,7.61]
[1758677734096,1.2576933,215.49,215.46,7.61]
[1758677734399,7.53,215.5,215.46,7.61]
[1758677734597,1.25734732,215.49,215.46,7.61]
[1758677734803,7.53,215.51,215.41,8.92586878]
[1758677735001,7.53,215.49,215.41,8.92586878]
[1758677735196,1.25735178,215.48,215.41,8.92586878]
[1758677735393,7.53,215.49,215.43,1.31586878]
[1758677735600,9.97789321,215.52,215.44,7.61]
[1758677735804,1.2571251,215.51,215.44,7.61]
[1758677736102,1.2571251,215.5,215.45,1.31586878]
[1758677736308,9.97789321,215.52,215.46,7.61]
[1758677736506,1.25685192,215.51,215.45,8.92586878]
[1758677736706,9.97789321,215.52,215.45,8.92586878]
[1758677737003,1.25684952,215.51,215.47,1.31586878]
[1758677737309,9.17,215.52,215.48,7.61]
[1758677738400,9.17,215.52,215.48,4.175]
[1758677738616,9.17,215.52,215.49,7.61]
[1758677738799,9.17,215.52,215.49,8.92586878]
[1758677739809,9.17,215.52,215.49,13.10056878]
[1758677740704,9.17,215.52,215.46,4.1753]
[1758677741108,16.7,215.52,215.46,4.1753]
[1758677741809,7.53,215.51,215.47,11.7851]
[1758677742805,7.53,215.51,215.48,4.1749]
[1758677743009,9.17,215.52,215.48,7.61]
[1758677743211,9.17,215.52,215.46,8.92586878]
[1758677743408,9.17,215.52,215.49,4.1747]
[1758677743613,7.53,215.51,215.49,4.1747]
[1758677744913,9.17,215.52,215.49,11.7847]
[1758677746214,9.17,215.52,215.5,4.1745]
[1758677746715,16.7,215.52,215.49,7.61]
[1758677747112,16.7,215.52,215.49,11.7847]
[1758677748115,16.7,215.52,215.47,11.7851]
[1758677748314,9.17,215.52,215.47,4.1751]
[1758677748617,9.17,215.52,215.47,7.61]
[1758677748919,9.17,215.52,215.5,11.7845]
[1758677750916,9.17,215.52,215.47,4.1752]
[1758677751318,7.53,215.55,215.47,4.1752]
[1758677751813,7.53,215.55,215.48,4.1749]
[1758677752314,7.53,215.55,215.49,4.1747]
[1758677752618,7.53,215.55,215.48,1.31586878]
[1758677753118,7.53,215.56,215.53,4.174]
[1758677754505,9.96779007,215.57,215.53,4.174]
[1758677754506,7.75,215.55,215.53,4.174]
[1758677754818,7.75,215.56,215.51,4.1744]
[1758677755014,9.16,215.57,215.51,7.26]
[1758677755221,9.16,215.57,215.53,7.26]
[1758677756321,9.16,215.57,215.55,4.1736]
[1758677757824,16.91,215.57,215.55,4.1736]
[1758677759320,16.91,215.57,215.56,7.26]
[1758677759321,9.16,215.57,215.56,7.26]
[1758677763418,9.16,215.57,215.53,4.174]
[1758677763621,7.75,215.56,215.53,4.174]
[1758677764228,9.16,215.57,215.54,11.4337]
[1758677764724,16.91,215.57,215.54,11.4337]
[1758677765328,7.75,215.56,215.52,11.4342]
[1758677765521,7.75,215.56,215.52,7.26]
[1758677765720,9.16,215.57,215.51,1.31586878]
[1758677766121,9.16,215.57,215.53,1.31586878]
[1758677766324,9.16,215.57,215.54,7.26]
[1758677766524,9.16,215.57,215.55,11.4337]
[1758677767324,9.16,215.57,215.56,7.26]
[1758677769317,9.16,215.57,215.55,4.1737]
[1758677769520,9.16,215.57,215.5,74.25056294]
[1758677769824,9.16,215.57,215.51,7.26]
[1758677770023,9.16,215.57,215.56,4.1735]
[1758677770725,9.16,215.57,215.56,11.4335]
[1758677771920,7.75,215.67,215.59,7.26]
[1758677772121,1.26009766,215.66,215.59,7.26]
[1758677772321,7.75,215.67,215.59,7.26]
[1758677772914,7.06,215.67,215.63,4.172]
[1758677773516,0.80730284,215.68,215.63,4.172]
[1758677773724,7.06,215.66,215.63,4.172]
[1758677774026,8.31993456,215.65,215.63,4.172]
[1758677774330,7.06,215.68,215.65,4.1715]
[1758677774623,1.25950682,215.67,215.65,4.1715]
[1758677774928,1.25950682,215.66,215.65,4.1715]
[1758677775227,7.06,215.68,215.67,4.1713]
[1758677775419,8.31907415,215.68,215.61,7.41]
[1758677775618,1.25907415,215.67,215.61,7.41]
[1758677775820,7.06,215.65,215.61,7.41]
[1758677776828,7.06,215.65,215.63,4.172]
[1758677778229,7.06,215.7,215.61,7.41]
[1758677778421,1.25825282,215.69,215.61,7.41]
[1758677778622,1.25825282,215.68,215.61,7.41]
[1758677778831,1.25825282,215.67,215.61,7.41]
[1758677779028,7.06,215.7,215.61,7.41]
[1758677779329,7.06,215.68,215.61,7.41]
[1758677779622,1.32651651,215.67,215.61,7.41]
[1758677779829,7.06,215.68,215.61,7.41]
[1758677780022,1.32633793,215.67,215.61,7.41]
[1758677780224,7.06,215.68,215.61,7.41]
[1758677780524,1.32628713,215.67,215.61,7.41]
[1758677780722,7.06,215.68,215.61,7.41]
[1758677780923,1.32628713,215.67,215.61,7.41]
[1758677781229,7.06,215.68,215.61,7.41]
[1758677781530,1.32620605,215.67,215.61,7.41]
[1758677781727,0.80722794,215.71,215.62,64.9027]
[1758677782025,0.80722794,215.71,215.64,7.41]
[1758677782026,1.32620317,215.7,215.64,7.41]
[1758677782325,1.32585667,215.69,215.65,7.41]
[1758677782631,7.86722794,215.71,215.65,7.41]
[1758677782817,7.06,215.69,215.65,7.41]
[1758677783728,7.06,215.69,215.67,4.1712]
[1758677787628,7.06,215.69,215.65,11.5817]
[1758677788227,7.06,215.69,215.66,4.1714]
[1758677788426,7.06,215.69,215.65,7.41]
[1758677789130,7.06,215.69,215.63,7.33]
[1758677789331,7.06,215.69,215.67,4.1712]
[1758677789532,7.36,215.75,215.65,7.33]
[1758677789834,2.13256372,215.74,215.65,7.33]
[1758677790034,1.32542939,215.73,215.65,7.33]
[1758677790336,1.32542939,215.72,215.65,7.33]
[1758677790531,0.80713433,215.74,215.67,72.2171]
[1758677790831,7.36,215.75,215.69,7.33]
[1758677791534,7.36,215.75,215.73,4.17]
[1758677792142,7.36,215.77,215.74,4.1698]
[1758677793236,0.8070033,215.78,215.74,4.1698]
[1758677793931,7.36,215.77,215.74,4.1698]
[1758677794737,7.36,215.77,215.71,4.1704]
[1758677795340,7.36,215.77,215.69,7.33]
[1758677795938,7.36,215.77,215.71,4.1704]
[1758677796633,7.36,215.84,215.74,72.196]
[1758677796836,7.36,215.84,215.76,7.33]
[1758677797043,1.32475909,215.83,215.77,3.87848894]
[1758677797235,7.36,215.86,215.77,7.33]
[1758677797434,1.32440846,215.85,215.78,8.04686629]
[1758677797635,1.32440846,215.84,215.79,3.87737239]
[1758677797842,7.36,215.86,215.76,7.33]
[1758677798137,1.32439912,215.85,215.78,7.33]
[1758677798340,7.36,215.86,215.81,4.1685]
[1758677798540,1.32386697,215.85,215.81,11.4985]
[1758677798842,7.36,215.86,215.81,11.4985]
[1758677799142,8.68386693,215.85,215.81,11.4985]
[1758677799343,7.36,215.85,215.81,11.4985]
[1758677799536,7.36,215.85,215.81,7.33]